Cogmind - Beta 16 @@@ ROGUE MODE // 2026.02.05 @ 19:51:53 Player: Megaknight51 Result: Destroyed by G-34 Mercenary with Small Laser Performance ------------- Evolutions (0) 0 Regions Visited (1) 200 Robots Destroyed (16) 80 Value Destroyed (328) 328 Prototype IDs (2) 40 Alien Tech Used (0) 0 Bonus (0) 0 TOTAL SCORE: 648 Bonus ------- None Cogmind --------- Core Integrity 0/250 Matter 300/300 Energy 100/100 System Corruption 0% Temperature Cool (6) Movement Core (350) Ox6 Location -10/Materials Parts ------- > --- POWER (1) -------- (None) > --- PROPULSION (2) --- (None) > --- UTILITY (2) ------ Large Storage Unit > --- WEAPON (2) ------- (None) > --- INVENTORY (15) --- Ion Engine Light Ion Engine Flight Unit Flight Unit Machine Analyzer Improved Terrain Scanner Seismic Detector Peak State ------------ > --- POWER ------------ Ion Engine > --- PROPULSION ------- Light Treads Light Treads > --- UTILITY ---------- Large Storage Unit Seismic Detector > --- WEAPON ----------- Medium Laser Light Cannon > --- INVENTORY -------- Light Ion Engine Improved Terrain Scanner Seismic Detector [Rating: 7] Favorites ----------- Power Ion Engine Engine Ion Engine Propulsion Light Treads Treads Light Treads Utility Seismic Detector Device Seismic Detector Storage Large Storage Unit Weapon Medium Laser Energy Gun Medium Laser Ballistic Cannon Light Cannon Build | -11 -10 ------- Run | Yrd Mat Slots Evolved . | . . Power . | . . Propulsion . | . . Utility . | . . Weapon . | . . Parts Attached 9 | 6 3 Power 2 | 1 1 Engine 2 | 1 1 Core . | . . Reactor . | . . Propulsion 2 | 2 . Treads 2 | 2 . Leg . | . . Wheel . | . . Hover . | . . Flight . | . . Utility 3 | 2 1 Device 1 | 1 . Storage 2 | 1 1 Processor . | . . Hackware . | . . Protection . | . . Artifact . | . . Weapon 2 | 1 1 Energy Gun 1 | 1 . Energy Cannon . | . . Ballistic Gun . | . . Ballistic Cannon 1 | . 1 Launcher . | . . Special Weapon . | . . Impact Weapon . | . . Slashing Weapon . | . . Piercing Weapon . | . . Special Melee Weapon . | . . Unidentified Prototypes . | . . Parts Lost 6 | . 6 Power 1 | . 1 Propulsion 2 | . 2 Utility 1 | . 1 Weapon 2 | . 2 Highest Loss Streak 4 | . 4 To Critical Strikes . | . . Average Backups 3 | 1 4 Power 1 | . 1 Propulsion . | . . Utility 1 | . 2 Weapon . | . . Tool/Special . | . . Unused Backups 7 | . 7 Power 2 | . 2 Propulsion 2 | . 2 Utility 3 | . 3 Weapon . | . . Tool/Special . | . . Average Slot Usage (%) 77 | . 77 Engine 11 | . 11 Treads 22 | . 22 Device 14 | . 14 Storage 14 | . 14 Energy Gun 10 | . 10 Ballistic Cannon 4 | . 4 Peak Build Rating 7 | 6 7 Average Rating 5 | 4 5 On Entrance 3 | . 6 Avg Prop Armor Cover (%) . | . . Naked Turns . | . . Heaviest Build 31 | 13 31 Greatest Support 40 | 40 40 Greatest Overweight (x) 6 | . 6 Average Overweight (x) . | . . Largest Inventory Capacity 15 | 8 15 Average Capacity 13 | 7 14 Most Carried 7 | 2 7 Average Carried 3 | 1 4 Final Capacity 15 | 8 15 Final Carried 7 | 2 7 Class Distribution -------------------- 100% | Mutant Dominant Class ---------------- Mutant | -10/Materials Resources | -11 -10 ----------- Run | Yrd Mat Matter Collected 358 | 259 99 Remotely . | . . Salvage Created 420 | 51 369 Parts 28 | 7 21 Haulers Intercepted . | . . Recyclers Shooed 2 | 1 1 Parts Field Recycled . | . . Retrieved Matter . | . . Parts Self-Destructed . | . . Prevented . | . . Parts Restored . | . . Kills | -11 -10 ------- Run | Yrd Mat Combat Hostiles Destroyed 10 | . 10 Guns 4 | . 4 Cannons 5 | . 5 Classes Destroyed 5 | 1 4 Worker 1 | . 1 Builder 1 | . 1 Tunneler 4 | 3 1 Swarmer 3 | . 3 Grunt 7 | . 7 Best Kill Streak 3 | 1 3 Combat Bots Only 3 | . 3 Max Kills in Single Turn 1 | 1 1 Gunslinging . | . . Exploded . | . . Melee . | . . Uniques/NPCs Destroyed . | . . Combat | -11 -10 -------- Run | Yrd Mat Hostile Shots Fired 97 | . 97 Missed 30 | . 30 Hits 67 | . 67 Projectile 67 | . 67 Critical Strikes 1 | . 1 Damage Taken 905 | . 905 Core 250 | . 250 Absorbed by Shields . | . . Core Remaining (%) 100 | 100 . Volleys Fired 66 | 17 49 Largest 2 | 1 2 Hottest 80 | 50 80 Shots Fired 83 | 17 66 Gun 66 | 17 49 Cannon 17 | . 17 Launcher . | . . Special . | . . Kinetic 17 | . 17 Thermal 66 | 17 49 Explosive . | . . Electromagnetic . | . . Robot Hit Streak 15 | 3 15 Robot Miss Streak 3 | 2 3 Penetration Max . | . . Secondary Targets . | . . Shots Hit Robots 57 | 12 45 Core Hits 24 | 3 21 Critical Kills . | . . Critical Parts Destroyed . | . . Critical Strikes 3 | 2 1 Burn 3 | 2 1 Melee Attacks . | . . Impact . | . . Slashing . | . . Piercing . | . . Sneak Attacks . | . . Combat Hostiles . | . . Follow-up Attacks . | . . Damage Inflicted 863 | 163 700 Guns 607 | 163 444 Cannons 231 | . 231 Explosions . | . . Melee . | . . Ramming 25 | . 25 Kinetic 231 | . 231 Thermal 607 | 163 444 Explosive . | . . Electromagnetic . | . . Impact . | . . Slashing . | . . Piercing . | . . Highest Corruption . | . . Average Corruption . | . . Corruption Purged . | . . Corruption Blocked . | . . Overload Shots . | . . Overflow Damage 27 | . 27 Projectiles 27 | . 27 Explosions . | . . Melee . | . . Knockbacks 6 | . 6 Impact 1 | . 1 Kinetic 5 | . 5 Secondary . | . . Self-Inflicted Damage . | . . Shots . | . . Rammed 4 | . 4 Targets Rammed 4 | . 4 Kicked . | . . Crushed . | . . Highest Temperature 179 | 80 179 Average Temperature 55 | 29 63 Received Heat Transfer 282 | . 282 Siege Activations . | . . Martial Activations . | . . Shielding Activations . | . . Robots Disrupted . | . . Combat Hostiles . | . . Robots Corrupted . | . . Combat Hostiles . | . . Parts Fried . | . . Impact Corruptions . | . . Robots Melted 1 | . 1 Combat Hostiles 1 | . 1 Parts Melted 6 | 1 5 Heat Transferred 1998 | 629 1369 Parts Sabotaged . | . . Parts Stolen . | . . Parts Stripped . | . . Power Chain Reactions . | . . Alert | -11 -10 ------- Run | Yrd Mat Maximum Alert Level . | . . Low Security (%) 100 | 100 100 Level 1 . | . . Level 2 . | . . Level 3 . | . . Level 4 . | . . Level 5 . | . . High Security . | . . Max Security . | . . Peak Influence 196 | 5 196 Initial 3 | . 3 Average 40 | 1 49 Influence Increases 364 | 15 349 Destroy 0b10 Robot/C 200 | . 200 Destroy 0b10 Robot/NC 30 | 15 15 Destroy Leader 40 | . 40 Successful Hack 18 | . 18 Destroy Structure 1 | . 1 Lose Combat Pursuer 75 | . 75 Influence Decreases 324 | 10 314 Entered New Map 2 | . 2 Time Decay 262 | 10 252 Lost Part 60 | . 60 Squads Dispatched 3 | . 3 Investigation 2 | . 2 Extermination . | . . Reinforcement 1 | . 1 Assault . | . . Garrison . | . . Intercept . | . . Searches Triggered . | . . Construction Impeded . | . . Haulers Reinforced . | . . Active Scanning Responses . | . . Cargo Convoy Interrupts . | . . Stealth | -11 -10 --------- Run | Yrd Mat Distress Signals 1 | . 1 Communications Jammed . | . . Distress Signals . | . . Times Spotted 31 | . 31 Peak Tracking Total 7 | . 7 Tactical Retreats 6 | . 6 Traps | -11 -10 ------- Run | Yrd Mat Traps Triggered 1 | . 1 Indirectly . | . . Trap Hack Attempts . | . . Triggered . | . . Disarmed 2 | . 2 Reprogrammed . | . . Reused . | . . Traps Extracted . | . . Installed . | . . Triggered . | . . Machines | -11 -10 ---------- Run | Yrd Mat Machines Disabled . | . . Max in Single Turn . | . . Machines Repaired . | . . Machines Dismantled . | . . Machines Sabotaged . | . . Overloaded Fab Kills . | . . Hacking | -11 -10 --------- Run | Yrd Mat Machines Accessed 3 | . 3 Terminals 3 | . 3 Fabricators . | . . Repair Stations . | . . Recycling Units . | . . Scanalyzers . | . . Garrison Access . | . . Total Hacks 10 | . 10 Successful 5 | . 5 Failed 5 | . 5 Catastrophic . | . . Database Lockouts . | . . Manual 6 | . 6 Terminals 10 | . 10 Fabricators . | . . Repair Stations . | . . Recycling Units . | . . Scanalyzers . | . . Garrison Access . | . . Terminal Hacks 5 | . 5 Robot Analysis 2 | . 2 Prototype ID Bank 1 | . 1 Terminal Index 1 | . 1 Disarm Traps 1 | . 1 Fabricator Hacks . | . . Repair Station Hacks . | . . Recycling Unit Hacks . | . . Scanalyzer . | . . Garrison Access Hacks . | . . Unauthorized Hacks . | . . Terminals . | . . Fabricators . | . . Repair Stations . | . . Recycling Units . | . . Scanalyzers . | . . Garrison Access . | . . Data Cores Recovered . | . . Used . | . . Hacking Detections 3 | . 3 Full Trace Events 1 | . 1 Feedback Events . | . . Feedback Blocked . | . . Robot Schematics Acquired . | . . Robots Built . | . . Authchips . | . . Time . | . . Total Robot Build Rating . | . . Part Schematics Acquired . | . . Parts Built . | . . Authchips . | . . Time . | . . Total Part Build Rating . | . . Part Studies Acquired . | . . Parts Repaired . | . . Time . | . . Parts Recycled . | . . Recycled Matter . | . . Retrieved Matter . | . . Retrieved Components . | . . Parts Scanalyzed . | . . Part Schematics Acquired . | . . Parts Damaged . | . . Bothacking | -11 -10 ------------ Run | Yrd Mat Used RIF Installer . | . . Robots Hacked . | . . Non-combat . | . . Combat . | . . Robot Hacks Applied . | . . Relay Couplers Released . | . . Fabnet Peak Effective % . | . . Robots Rewired . | . . Allies Hacked . | . . Hacks Repelled . | . . Allies | -11 -10 -------- Run | Yrd Mat Total Allies . | . . Largest Group . | . . Highest-Rated Group . | . . Highest-Rated Ally . | . . Total Orders . | . . Ally Attacks . | . . Total Damage . | . . Kills . | . . Allies Corrupted . | . . Allies Melted . | . . Intel | -11 -10 ------- Run | Yrd Mat Active Infowar (turns) 803 | 9 794 Seismic 803 | 9 794 Robot Analysis Total 2 | . 2 Derelict Logs Recovered . | . . Drone Launches . | . . Drone Recoveries . | . . Exploration | -11 -10 ------------- Run | Yrd Mat Turns Passed 975 | 179 796 Spaces Moved 441 | 93 348 Core 50 | 12 38 Treads 391 | 81 310 Legs . | . . Wheels . | . . Hover . | . . Flight . | . . Fastest Speed 50 | 50 160 Average Speed 175 | 145 183 Slowest Speed 350 | 160 350 Overloaded Moves . | . . Propulsion Burnouts . | . . Robots Hopped . | . . Potential Cave-ins . | . . Cave-ins Triggered . | . . Exploration Rate (%) 29 | 6 53 Regions Visited 1 Branch Regions . Pre-discovered Areas . | . . Known Exits Taken . | . . Unknown Exits Taken 1 | 1 . Scrap Searched . | . . Spaces Dug . | . . Terrain Destroyed . | . . Melee . | . . Projectile . | . . AOE . | . . Terrain Rammed . | . . Walls Destroyed . | . . Machines Disabled . | . . Actions | -11 -10 --------- Run | Yrd Mat Total 553 | 117 436 Wait 25 | . 25 Move 440 | 92 348 Hop . | . . Pick Up 7 | 2 5 Fast Attach 7 | 6 1 Attach . | . . Detach . | . . Swap 2 | . 2 Drop 2 | . 2 Fire 66 | 17 49 Melee . | . . Ram . | . . Kick . | . . Crush 4 | . 4 Escape Stasis . | . . Rewire . | . . Trap . | . . Miscellaneous . | . . Route ------- -11/Scrapyard -10/Materials (discovered 2 exits: [*Mat] / [*Sub]) History --------- Turn | Location | Event 6 | -11/Scrapyard | Discovered new exit (range 14) 180 | -11/Scrapyard | Entered Materials 249 | -10/Materials | Discovered new exit (range 6) 303 | -10/Materials | Build established: Mutant 664 | -10/Materials | Discovered new exit (range 12) 680 | -10/Materials | Derelicts attacked the area 809 | -10/Materials | Core integrity fell below 50% 865 | -10/Materials | Lost 4 parts (1p2n1w) 960 | -10/Materials | Core integrity fell below 20% 976 | -10/Materials | Destroyed by G-34 Mercenary with Small Laser Last Messages --------------- 00762_ U-05 Engineer builds a Wall. 00768_ Med. Laser destroyed. 00770_ M-13 Machinist destroyed. 00792_ Acquired Machine Analyzer. 00800_ Ion Engine destroyed. 00803_ Lgt. Treads destroyed. 00804_ Lgt. Cannon destroyed. 00809_ Electrolysis Chamber disabled. 00812_ Slammed into R-06 Scavenger. 00819_ U-05 Engineer destroyed. 00834_ S-10 Pest destroyed. 00834_ Lgt. Treads destroyed. 00880_ U-05 Engineer destroyed. 00885_ Triggered Alarm Trap. 00885_ An alarm sounds. 00885_ ALERT: Alarm triggered, dispatching investigation squad. 00945_ K-01 Serf collects debris. 00968_ R-06 Scavenger collects Sub. Monowheel. 00974_ R-06 Scavenger collects Sml. Matter Pod. 00974_ Seismic Detector destroyed. Map ----- +----------------------------------------------------+ | ?????????????????????????????????????????????????? | | ?????????????????????????????????????????????????? | | ?????????????????????????????????????????????????? | | ?????????????????????????????????????????????????? | | ?????????????????????????????????????????????????? | | ?????????????????????????????????????????????????? | | ?????????????????????????????????????????????????? | | ?????????????????????????????????????????????????? | | ?????????????????????????????????????????????????? | | ?????????????????????????????????????????????????? | | ?????????????????????????????????????????????????? | | ?????????????????????????????????????????????????? | | ?????????????????????????????????????????????????? | | ?????????????????????????????????????????????????? | | ?????????????????????????????????????????????????? | | ?????????????????????????????????????????????????? | | ?????????????????????????????????????????????????? | | ?????????????????????????????????????????????????? | | ?????????????????????#######?????????????????????? | | ??????????????######## #?????????????????????? | | ????????????? * #????????????????????? | | ????????????? #???????????????????? | | ?????????????? ??????????????????###+# | | ???????????????# """ ??????????????????# | | ???????????????# """ #????????????####### | | ???????????????# """ @###########??# % | | ???????????????# # | #??# ######/## | | ???????????????# # #??#%## | | ???????????????# # #??# ## * | | ???????????????# g# #??# ## """"" | | ???????????????# "T" %k """ """ #### ## """"" | | ???????????????#a %# "R """ + %## """"" | | ???????????????# # """ """ #### ## | | ???????????????###+###### # #??# ##!= | | ????????????????????????# ###########??# ##!= | | | ????????????????????????#r#????????????# ######### | | ????????????????????????# #????????????# #???????? | | ????????????????????????#*#?????######## #???????? | | ????????????????????????#%#?????# # #???????? | | ????????????????????????#=####### # #???????? | | ????????????????????????#= / # #???????? | | ????????????????????????#%####### # #???????? | | ????????????????????????#|#?????# %# ######### | | ????????????????????????# #?????# %+% | | ????????????????????????# #?????# % # | | ????????????????????????# #?????#!!= #== | | ????????????????????????# #?????#!!= *%"%% | | ????????????????????????#+####### ########### | | ????????????????????????# # #?????????? | | ????????????????????????# # #????#????? | +----------------------------------------------------+ Best States ------------- Heat Dissipation 25 Energy Generation 10 Energy Capacity 250 Matter Stores 300 Matter Capacity 300 Sight Range 16 Terrain Scan Density 10 Evasion (%) 40 Recoil Reduction 2 Item Schematics ----------------- None Robot Schematics ------------------ None Fabricated ------------ Nothing Repaired ---------- Nothing Studied --------- None Alien Tech Used ----------------- None Achievements -------------- None Challenges ------------ None Game ------ Seed SingularityTerrabombWand Manual? 0 Play Time 00:09:40 Cumulative 53.1 hours Start 2026.02.05 @ 19:46:34 End 2026.02.05 @ 19:51:53 Sessions 1 Manual Loads 0 Difficulty Rogue Special Mode None Game No. 102 Rogue 102 Adventurer 0 Explorer 0 Win Type - Total 0 Types 0/0/0/0/0/0/0/0/0/0 Lore% 30 Gallery% 29 Achievement% 26 Wizard Run 0 Options --------- Layout 0 ASCII 0 Keyboard 1 Movement Arrows Keybinds 0 Fullscreen 1 Font 18/Smallcaps Map View 38x25 Zoom Use 99% Tactical HUD 1 Map Filters NONE Filters NONE Steam 1 RUN: 02fbabac-bebf-4958-8107-542119f3a2dc